bitfinex/quotes_SOLUSD_20240714
["timestamp","ask_amount","ask_price","bid_price","bid_amount"]
[1720950148411,1.0547665,147.14,147.07,1.35963926]
[1720950148613,1.0547665,147.14,147.08,1.35960241]
[1720950148806,1.0547665,147.14,147.07,1.35963426]
[1720950150005,1.0547665,147.14,147.04,6.8008]
[1720950150205,1.0547665,147.14,147.05,1.35934805]
[1720950150404,46.0547665,147.14,147.02,6.8016]
[1720950150607,46.0547665,147.14,147.03,0.46712381]
[1720950150800,22.9715,147.13,147.03,0.46712381]
[1720950151007,1.0547665,147.12,147.03,0.46712381]
[1720950151423,46.0547665,147.12,147.03,0.46712381]
[1720950151721,46.0547665,147.12,147.03,1.36003739]
[1720950152727,16.4349,147.11,147.0,259.138421]
[1720950153024,1.0547665,147.1,146.96,6.1225]
[1720950153602,1.0547665,147.1,147.01,6.8022]
[1720950154129,1.0547665,147.1,147.02,20.0]
[1720950154424,1.0547665,147.1,146.93,24.5]
[1720950154425,16.4349,147.08,146.93,24.5]
[1720950154607,1.0547665,147.07,146.99,6.803]
[1720950155011,1.0547665,147.07,146.98,6.8035]
[1720950155509,1.0547665,147.07,146.99,6.803]
[1720950155711,1.0547665,147.07,146.98,6.8036]
[1720950155909,1.0547665,147.07,146.98,23.8121]
[1720950156120,1.0547665,147.07,146.98,17.0085]
[1720950156325,46.0547665,147.07,146.99,20.0]
[1720950156621,46.0547665,147.07,146.98,20.0]
[1720950158217,1.0547665,147.07,146.99,6.8029]
[1720950158629,46.0547665,147.07,146.98,26.8035]
[1720950159232,46.0547665,147.07,146.99,6.8031]
[1720950159540,1.0547665,147.07,146.99,6.8031]
[1720950160130,1.0547665,147.07,146.99,1.36028971]
[1720950160316,46.0547665,147.07,146.99,1.36028971]
[1720950160518,46.0547665,147.07,146.98,21.36028971]
[1720950160723,46.0547665,147.07,146.99,1.36019716]
[1720950161030,1.0547665,147.07,146.99,1.36019716]
[1720950161228,46.0547665,147.07,146.99,1.36019716]
[1720950161444,46.0547665,147.07,146.98,20.0]
[1720950162043,46.0547665,147.07,146.94,6.805]
[1720950162044,16.4349,147.06,146.95,20.0]
[1720950162335,1.0547665,147.05,146.96,1.01724031]
[1720950162637,6.5366,147.03,146.96,1.01724031]
[1720950162838,1.0547665,147.02,146.96,1.01724031]
[1720950163127,1.0547665,147.01,146.96,1.01724031]
[1720950163339,16.4349,147.0,146.96,1.01724031]
[1720950163516,1.0547665,146.99,146.95,1.31660051]
[1720950163713,16.4349,147.0,146.96,1.31651093]
[1720950164022,16.4349,147.0,146.94,8.12181093]
[1720950164915,16.4349,147.0,146.95,20.0]
[1720950165121,16.4349,147.0,146.96,1.31633177]
[1720950166132,16.4349,147.0,146.95,1.31633176]
[1720950166430,1.0547665,146.99,146.94,20.0]
[1720950166650,1.0547665,146.99,146.95,1.36078781]
[1720950166933,16.4349,147.0,146.95,1.36078781]
[1720950167721,1.0547665,146.99,146.95,1.36078781]
[1720950168851,16.5522,147.0,146.93,1.36060228]
[1720950169012,16.5522,147.0,146.93,66.36060228]
[1720950169517,16.5522,147.0,146.94,6.8053]
[1720950169734,16.5522,147.0,146.95,21.36062579]
[1720950170031,16.5522,147.0,146.96,1.3605332]
[1720950170556,16.5522,147.0,146.96,53.1650332]
[1720950171033,16.5522,147.0,146.96,1.3605332]
[1720950173335,16.5522,147.0,146.95,1.36062464]
[1720950173537,16.5522,147.0,146.96,1.36062464]
[1720950174530,16.5522,147.0,146.96,21.36062464]
[1720950174930,16.5522,147.0,146.97,1.36062345]
[1720950175748,16.5522,147.0,146.95,6.8048]
[1720950175929,16.5522,147.0,146.96,21.36061199]
[1720950176130,16.5522,147.0,146.96,28.16501199]
[1720950176835,16.5522,147.0,146.96,21.36061199]
[1720950177029,16.5522,147.0,146.96,28.16501199]
[1720950177232,16.5522,147.0,146.96,21.36061199]
[1720950178720,16.5522,147.0,146.96,1.36061199]
[1720950178929,16.5522,147.0,146.96,46.36061199]
[1720950179227,16.5522,147.0,146.97,20.0]
[1720950179637,16.5522,147.0,146.98,1.36051945]
[1720950180342,6.5366,147.03,146.98,8.16401945]
[1720950180529,6.5366,147.03,146.99,20.0]
[1720950181046,7.5913665,147.03,146.99,20.0]
[1720950181227,7.5913665,147.03,146.97,21.36038352]
[1720950182023,6.5366,147.03,146.97,21.36038352]
[1720950182234,7.5913665,147.03,146.97,21.36038352]
[1720950182426,7.5913665,147.03,146.98,1.36039431]
[1720950182944,7.5913665,147.03,146.97,20.0]
[1720950183536,7.5913665,147.03,146.98,1.35910305]
[1720950183827,6.5366,147.03,146.99,1.35901058]
[1720950184245,7.5913665,147.03,146.99,1.35901058]
[1720950184839,7.5913665,147.03,146.98,1.36043933]
[1720950185050,7.5913665,147.03,146.99,1.36041199]
[1720950186044,7.5913665,147.03,146.98,1.36041221]
[1720950186222,7.5913665,147.03,146.99,1.36031965]
[1720950186429,7.5913665,147.03,146.92,23.8214]
[1720950186619,45.0,147.02,146.92,23.8214]
[1720950186824,15.0778,147.0,146.93,1.36079046]
[1720950187046,7.6040665,146.99,146.93,1.36079046]
[1720950187346,7.6040665,146.99,146.92,1.36096888]
[1720950187532,7.6040665,146.99,146.93,1.36087625]
[1720950187928,7.6040665,146.99,146.9,23.8249]
[1720950188126,7.6040665,146.99,146.9,17.0177]
[1720950188322,15.0778,146.98,146.91,1.56103007]
[1720950188547,7.11849619,147.12,146.91,0.2]
[1720950188548,6.5493,146.95,146.91,0.2]
[1720950188846,1.0547665,146.94,146.91,0.2]
[1720950189031,46.0547665,146.94,146.86,0.8692105]
[1720950189420,15.0778,146.93,146.86,0.8692105]
[1720950189725,31.0547665,146.92,146.86,0.8692105]
[1720950190332,6.5493,146.9,146.86,0.8692105]
[1720950190643,91.1325665,146.89,146.81,0.2]
[1720950191719,46.1325665,146.89,146.81,0.2]
[1720950192035,45.0,146.88,146.81,0.2]
[1720950192243,31.0547665,146.87,146.81,0.2]
[1720950193130,1.0547665,146.87,146.81,0.2]
[1720950193636,45.0778,146.86,146.81,0.2]
[1720950193835,6.5493,146.84,146.81,0.2]
[1720950194032,1.0547665,146.83,146.81,0.2]
[1720950195830,1.0547665,146.82,146.81,0.2]
[1720950196851,1.70303255,146.83,146.74,22.41384581]
[1720950197066,1.70314692,146.82,146.75,0.6018799]
[1720950197256,1.70314692,146.82,146.74,15.59914581]
[1720950197552,6.5493,146.84,146.77,6.813]
[1720950197728,1.70277783,146.83,146.78,1.36222226]
[1720950198045,6.5493,146.84,146.78,25.20702226]
[1720950198232,1.70277492,146.83,146.78,1.36222226]
[1720950198548,1.70277492,146.83,146.79,1.36234192]
[1720950198924,8.25209221,146.84,146.79,1.36234192]
[1720950199140,8.25209221,146.84,146.77,1.36222911]
[1720950199333,8.25209221,146.84,146.77,46.36222911]
[1720950199527,8.25209221,146.84,146.78,20.0]
[1720950200144,8.25209221,146.84,146.76,20.0]
[1720950200340,8.25209221,146.84,146.77,1.36241971]
[1720950200541,8.25209221,146.84,146.75,20.0]
[1720950200749,45.0,146.83,146.73,26.8149]
[1720950200928,1.70320681,146.82,146.73,26.8149]
[1720950201245,1.70320681,146.82,146.73,20.0]
[1720950201548,15.0778,146.81,146.72,23.8542]
[1720950201745,1.70332346,146.8,146.72,23.8542]
[1720950201952,1.70332348,146.79,146.72,23.8542]
[1720950202530,1.70332348,146.79,146.73,1.36265786]
[1720950202937,1.70339153,146.8,146.73,1.36265786]
[1720950203148,1.70339444,146.79,146.73,1.36265786]
[1720950203551,1.70339444,146.79,146.72,1.3627863]
[1720950203757,1.70339444,146.79,146.71,1.0692105]
[1720950203936,6.5493,146.78,146.71,1.0692105]
[1720950204141,1.7035686,146.77,146.71,1.0692105]
[1720950204462,15.0778,146.75,146.71,1.0692105]
[1720950204762,1.70395005,146.74,146.71,1.0692105]
[1720950205059,15.0778,146.75,146.71,1.0692105]
[1720950205269,1.70381866,146.74,146.71,1.0692105]
[1720950206670,1.70394901,146.74,146.71,1.0692105]
[1720950206833,15.0778,146.75,146.71,1.0692105]
[1720950206834,1.70386949,146.73,146.71,1.0692105]
[1720950214947,46.70436243,146.74,146.71,1.0692105]
[1720950215254,1.70433514,146.73,146.71,1.0692105]
[1720950215871,15.0778,146.75,146.71,1.0692105]
[1720950216463,15.0778,146.75,146.71,21.0692105]
[1720950216643,15.0778,146.75,146.71,22.43158674]
[1720950217348,1.70378377,146.74,146.71,1.0692105]
[1720950217568,7.12375309,146.83,146.72,1.36322722]
[1720950217861,15.5567,146.86,146.82,6.8109]
[1720950218071,1.7024885,146.85,146.81,17.0286]
[1720950218245,1.7024885,146.85,146.79,6.812]
[1720950218435,1.7024885,146.85,146.8,21.36210859]
[1720950218641,1.7024885,146.85,146.75,25.21130859]
[1720950218848,1.7024885,146.85,146.76,20.0]
[1720950219058,1.7024885,146.85,146.77,53.17538815]
[1720950219235,1.7024885,146.85,146.78,20.0]
[1720950219442,1.7024885,146.85,146.79,1.36225958]
[1720950219637,1.7024885,146.85,146.78,20.0]
[1720950219847,1.7024885,146.85,146.76,21.3623733]
[1720950220045,1.7024885,146.85,146.77,1.3623733]
[1720950220461,46.7024885,146.85,146.77,1.3623733]
[1720950220964,46.7024885,146.85,146.76,20.0]
[1720950221170,46.7024885,146.85,146.76,26.8138]
[1720950221468,46.7024885,146.85,146.76,20.0]
[1720950221862,6.4624,146.88,146.77,6.4914]
[1720950222094,6.4624,146.88,146.8,6.8119]
[1720950222095,8.16486498,146.88,146.8,6.8119]
[1720950222373,8.16486498,146.88,146.81,38.39057941]
[1720950223064,8.16486498,146.88,146.81,37.0287]
[1720950223469,22.0191,146.84,146.71,1.0692105]
[1720950223649,1.70416837,146.83,146.71,1.0692105]
[1720950223965,30.0,146.81,146.71,1.0692105]
[1720950224172,21.704084,146.8,146.71,1.0692105]
[1720950224357,1.70413213,146.79,146.71,1.0692105]
[1720950224665,34.9421368,146.78,146.71,1.0692105]
[1720950224971,6.1604,146.76,146.71,1.0692105]
[1720950225287,21.0898925,146.75,146.71,1.0692105]
[1720950225447,20.0,146.74,146.71,1.0692105]
[1720950225769,66.08989445,146.73,146.71,1.0692105]
[1720950225993,21.08989445,146.73,146.71,1.0692105]
[1720950226145,22.011,146.81,146.72,135.72237892]
[1720950226350,15.8506,146.78,146.71,1.0692105]
[1720950226651,15.8506,146.78,146.61,0.2]
[1720950226652,1.70462806,146.77,146.61,0.2]
[1720950226846,1.70458882,146.76,146.61,0.2]
[1720950227168,22.011,146.75,146.61,0.2]
[1720950227368,1.70488823,146.74,146.61,1.56391059]
[1720950227570,1.70488823,146.74,146.62,1.36392022]
[1720950227571,1.70490029,146.73,146.62,1.36392022]
[1720950227745,1.70490029,146.73,146.61,0.2]
[1720950227950,1.70490029,146.73,146.61,1.56352564]
[1720950228352,1.70490029,146.73,146.62,1.36349805]
[1720950229370,1.70490029,146.73,146.61,0.2]
[1720950229589,1.70490029,146.73,146.61,1.56342197]
[1720950230670,1.70490029,146.73,146.62,1.3635814]
[1720950231169,6.1604,146.71,146.51,0.2]
[1720950231371,112.55599673,146.7,146.51,0.2]
[1720950231872,82.55599673,146.7,146.51,20.68]
[1720950232263,82.55599673,146.7,146.51,60.34]
[1720950232468,1.70457855,146.69,146.54,24.66]
[1720950232961,1.70457855,146.69,146.55,20.0]
[1720950233157,1.70457855,146.69,146.56,45.0]
[1720950233468,1.70457855,146.69,146.57,20.8692105]
[1720950233667,1.70457855,146.69,146.58,45.0]
[1720950233861,1.70457855,146.69,146.59,20.0]
[1720950234064,23.71558413,146.68,146.57,0.8692105]
[1720950234470,65.0,146.67,146.57,0.8692105]
[1720950234667,1.70515714,146.66,146.57,0.8692105]
[1720950236473,65.0,146.67,146.51,0.2]
[1720950236474,23.71607475,146.65,146.51,0.2]
[1720950236678,65.0,146.64,146.51,0.2]
[1720950236860,1.70571749,146.63,146.51,0.2]
[1720950242263,46.70571749,146.63,146.51,0.2]
[1720950242459,1.70571749,146.63,146.52,6.3236]
[1720950242674,1.70523955,146.69,146.55,39.66]
[1720950242860,1.70440165,146.75,146.57,15.0]
[1720950243061,1.70440165,146.75,146.58,82.2897342]
[1720950244265,21.70440165,146.75,146.58,82.2897342]
[1720950244465,1.70440165,146.75,146.58,37.2897342]
[1720950245081,46.70440165,146.75,146.58,37.2897342]
[1720950245379,46.70440165,146.75,146.54,17.2897342]
[1720950245572,6.2253,146.74,146.52,6.3236]
[1720950245765,66.70536697,146.73,146.52,6.3236]
[1720950246980,66.70536697,146.73,146.53,20.0]
[1720950248190,16.0387,146.72,146.52,6.3236]
[1720950248385,66.70556615,146.71,146.52,6.3236]
[1720950248563,1.70555221,146.7,146.52,6.3236]
[1720950249769,1.70555221,146.7,146.51,0.2]
[1720950249988,6.2253,146.69,146.51,0.2]
[1720950250199,66.70567103,146.68,146.51,0.2]
[1720950250369,1.70572886,146.67,146.51,0.2]
[1720950250870,16.0387,146.66,146.51,0.2]
[1720950251085,66.70586198,146.65,146.51,0.2]
[1720950251283,1.70584311,146.64,146.51,0.2]
[1720950251569,1.70582868,146.71,146.52,21.3957]
[1720950251764,1.70465253,146.7,146.52,21.3957]
[1720950252069,1.7049098,146.78,146.53,65.0]
[1720950252372,1.7049098,146.78,146.54,15.0]
[1720950252576,1.7049098,146.78,146.55,65.0]
[1720950253388,1.7049098,146.78,146.56,15.0]
[1720950253589,1.7049098,146.78,146.57,45.0]
[1720950253978,1.7049098,146.78,146.56,45.0]
[1720950254377,4.51299541,146.78,146.56,45.0]
[1720950254591,1.7049098,146.78,146.56,45.0]
[1720950255180,21.7049098,146.78,146.56,45.0]
[1720950255378,21.7049098,146.78,146.55,20.0]
[1720950255679,45.0,146.77,146.55,20.0]
[1720950255888,21.70486779,146.76,146.55,20.0]
[1720950256202,16.0387,146.74,146.52,21.3957]
[1720950256492,66.70504776,146.73,146.53,20.0]
[1720950257069,66.70504776,146.73,146.53,40.48]
[1720950257070,21.70504776,146.73,146.53,40.48]
[1720950257475,1.70504776,146.73,146.54,65.65]
[1720950257674,1.70504776,146.73,146.55,40.48]
[1720950258076,1.70504776,146.73,146.56,45.0]
[1720950258309,1.70504776,146.73,146.57,20.0]
[1720950258482,1.70504776,146.73,146.58,45.0]
[1720950258994,21.70504776,146.73,146.58,45.0]
[1720950259178,1.70504776,146.73,146.58,45.0]
[1720950259381,21.70504776,146.73,146.58,45.0]
[1720950260394,16.0387,146.79,146.6,15.2252]
[1720950260595,1.70360465,146.78,146.64,30.17]
[1720950260902,1.70360465,146.78,146.65,80.0]
[1720950261187,17.74219408,146.79,146.66,20.48]
[1720950261391,16.0387,146.79,146.67,65.0]
[1720950261871,22.264,146.88,146.68,6.1705]
[1720950262071,1.70300155,146.87,146.69,65.0]
[1720950262268,1.70300155,146.87,146.69,80.0]
[1720950263077,1.70300155,146.87,146.69,65.0]
[1720950263277,1.70300155,146.87,146.69,80.0]
[1720950263693,21.70300155,146.87,146.69,80.0]
[1720950264476,21.70300155,146.87,146.68,6.1705]
[1720950264701,21.70300155,146.87,146.68,21.1705]
[1720950265902,21.70300155,146.87,146.69,45.0]
[1720950266093,21.70300155,146.87,146.7,20.0]
[1720950266395,21.70300155,146.87,146.71,45.0]
[1720950266785,45.0,146.86,146.71,45.0]
[1720950266989,21.70315062,146.85,146.71,45.0]
[1720950267172,45.0,146.84,146.71,45.0]
[1720950267372,1.70315193,146.83,146.68,6.1705]
[1720950267582,1.70342134,146.82,146.68,6.1705]
[1720950267785,1.70342134,146.82,146.68,21.1705]
[1720950267980,46.70342134,146.82,146.68,21.1705]
[1720950268205,20.0,146.81,146.68,21.1705]
[1720950268409,46.70342134,146.82,146.68,21.1705]
[1720950268580,1.70316486,146.81,146.68,21.1705]
[1720950269012,1.70316486,146.81,146.69,45.0]
[1720950275906,1.70316486,146.81,146.68,6.1705]
[1720950276389,6.3106,146.79,146.68,6.1705]
[1720950276590,8.01398564,146.79,146.68,6.1705]
[1720950276799,6.3106,146.79,146.68,6.1705]
[1720950277121,8.01384649,146.79,146.64,29.60075845]
[1720950277288,45.0,146.78,146.65,20.0]
[1720950277488,1.70373304,146.77,146.65,20.0]
[1720950277689,1.70373304,146.76,146.65,20.0]
[1720950278609,1.70373389,146.77,146.65,20.0]
[1720950278809,1.70370898,146.77,146.65,20.0]
[1720950279335,1.70360615,146.77,146.65,20.0]
[1720950280113,1.70360968,146.76,146.65,20.0]
[1720950280314,1.70361015,146.77,146.65,20.0]
[1720950280521,45.0,146.78,146.66,45.0]
[1720950280522,1.7036101,146.76,146.66,45.0]
[1720950280715,6.3106,146.75,146.6,7.94410289]
[1720950281012,46.70404039,146.74,146.58,259.138421]
[1720950281223,46.70404039,146.74,146.55,21.8963]
[1720950281921,15.5323,146.71,146.51,0.2]
[1720950282125,46.70524041,146.7,146.51,0.2]
[1720950282328,21.8429,146.69,146.51,0.2]
[1720950282527,46.7052606,146.68,146.51,0.2]
[1720950282709,1.70519923,146.67,146.51,0.2]
[1720950284920,20.48,146.76,146.51,0.2]
[1720950284921,1.70534945,146.73,146.58,24.64]
[1720950285112,1.70411121,146.78,146.59,15.0]
[1720950285420,1.70411121,146.78,146.69,6.817]
[1720950286434,1.70411121,146.78,146.61,15.0]
[1720950286616,1.70411121,146.78,146.62,45.0]
[1720950287335,1.70411121,146.78,146.7,6.8165]
[1720950287535,1.70411121,146.78,146.62,45.0]
[1720950287718,1.70411121,146.78,146.59,8.8269864]
[1720950287925,1.70411121,146.78,146.66,6.8181]
[1720950288234,1.70411121,146.78,146.59,8.8269864]
[1720950288433,1.70411121,146.78,146.6,45.0]
[1720950288932,21.70411121,146.78,146.6,45.0]
[1720950289137,1.70411121,146.78,146.6,45.0]
[1720950289337,15.8472,146.88,146.7,6.3863]
[1720950289548,1.70298073,146.87,146.66,15.0]
[1720950289833,1.70298073,146.87,146.67,45.0]
[1720950290349,1.70298073,146.87,146.74,6.8143]
[1720950290713,1.70298073,146.87,146.74,6.8147]
[1720950290929,21.70298073,146.87,146.75,6.8142]
[1720950291126,1.70298073,146.87,146.67,45.0]
[1720950291331,21.70298073,146.87,146.67,45.0]
[1720950291537,21.70298073,146.87,146.73,6.8148]
[1720950291838,1.70298073,146.87,146.72,6.8156]
[1720950292038,1.70298073,146.87,146.67,45.0]
[1720950292834,46.70298073,146.87,146.71,6.8157]
[1720950293018,20.0,146.86,146.71,6.8157]
[1720950293220,46.70378733,146.85,146.7,6.8165]
[1720950293431,20.0,146.84,146.7,6.8165]
[1720950293635,46.7037876,146.83,146.7,6.8165]
[1720950293825,21.7037372,146.82,146.7,6.8165]
[1720950294020,45.0,146.81,146.7,6.8165]
[1720950294226,21.70380497,146.8,146.7,6.8165]
[1720950294535,46.7038062,146.79,146.7,6.8165]
[1720950295233,46.7038062,146.79,146.63,6.3863]
[1720950295448,1.70380286,146.87,146.73,30.14]
[1720950295736,0.2,146.89,146.74,20.0]
[1720950296030,0.2,146.89,146.7,6.3863]
[1720950296222,0.2,146.89,146.78,6.8125]
[1720950296223,1.70296469,146.88,146.78,6.8125]
[1720950296424,22.258,146.87,146.76,6.8134]
[1720950296631,1.70323035,146.86,146.76,6.8134]
[1720950296831,1.70323195,146.85,146.76,6.8134]
[1720950297031,1.70323195,146.85,146.75,6.8142]
[1720950297226,1.70323195,146.85,146.76,6.8135]
[1720950298532,1.70323195,146.85,146.73,6.8151]
[1720950298730,0.2,146.89,146.69,20.48]
[1720950298938,0.2,146.89,146.88,6.8082]
[1720950299926,0.2,146.89,146.87,6.8085]
[1720950300121,0.2,146.89,146.88,6.8082]
[1720950303157,0.2,146.89,146.82,6.811]
[1720950303453,1.90281985,146.89,146.74,259.138421]
[1720950303627,1.90281985,146.89,146.8,6.8119]
[1720950304226,0.2,146.89,146.8,6.8119]
[1720950304435,1.90283104,146.89,146.79,6.8124]
[1720950304630,1.90283104,146.89,146.69,259.138421]
[1720950304631,22.258,146.88,146.69,259.138421]
[1720950304941,66.7031781,146.87,146.76,6.8133]
[1720950305127,66.7031781,146.87,146.67,13.1987]
[1720950305333,66.7031781,146.87,146.78,6.8127]
[1720950305640,66.7031781,146.87,146.67,13.1987]
[1720950305838,66.7031781,146.87,146.76,6.8137]
[1720950306218,21.7031781,146.87,146.67,13.1987]
[1720950306424,0.2,146.89,146.88,6.8082]
[1720950307919,0.2,146.89,146.79,6.6071]
[1720950308127,0.2,146.89,146.88,6.8082]
[1720950309225,0.2,146.89,146.87,6.8086]
[1720950309450,1.90215085,146.89,146.82,6.8109]
[1720950309682,1.90215085,146.89,146.74,6.6071]
[1720950309832,1.90215085,146.89,146.82,6.811]
[1720950310340,1.90215085,146.89,146.74,6.6071]
[1720950310541,0.2,146.89,146.81,6.8111]
[1720950310743,0.2,146.89,146.82,6.8107]
[1720950310944,1.9025699,146.89,146.8,6.8116]
[1720950311159,1.9025699,146.89,146.81,6.8114]
[1720950311536,0.2,146.89,146.76,35.48]
[1720950311741,0.2,146.89,146.88,6.8082]
[1720950319058,0.2,146.89,146.88,51.8082]
[1720950320941,0.2,146.99,146.9,6.8071]
[1720950321155,0.2,146.99,146.92,6.8064]
[1720950321364,0.2,146.99,146.91,6.8067]
[1720950321962,0.2,146.99,146.92,6.8064]
[1720950324147,0.2,146.99,146.88,45.0]
[1720950324347,0.2,146.99,146.89,45.0]
[1720950324648,0.2,146.99,146.91,6.8067]
[1720950325368,0.2,146.99,146.92,6.8064]
[1720950326959,0.2,146.99,146.89,45.0]
[1720950327445,0.2,146.99,146.92,6.8064]
[1720950331663,0.2,146.99,146.92,51.8064]
[1720950332956,0.56852307,146.93,146.92,51.8064]
[1720950334566,0.56852307,146.93,146.92,96.3764]
[1720950334567,2.307e-05,146.93,146.92,96.3764]
[1720950334771,2.307e-05,146.93,146.92,116.8564]
[1720950335284,2.307e-05,146.93,146.92,122.8851]
[1720950335797,0.2,146.99,146.98,6.8036]
[1720950335956,0.2,146.99,146.98,51.8036]
[1720950336667,0.2,146.99,146.98,71.8036]
[1720950338256,0.2,146.99,146.98,92.2836]
[1720950338449,0.8692105,147.08,147.07,6.7994]
[1720950338659,0.8692105,147.08,147.06,6.7998]
[1720950338873,0.8692105,147.08,147.07,6.7994]
[1720950339712,0.8692105,147.08,147.07,51.7994]
[1720950341457,1.05e-05,147.09,147.07,65.0]
[1720950341665,1.05e-05,147.09,147.08,71.799]
[1720950345059,1.05e-05,147.09,147.08,26.799]
[1720950346085,1.05e-05,147.09,147.01,31.87813955]
[1720950346274,1.05e-05,147.09,147.08,6.799]
[1720950347693,1.05e-05,147.09,147.06,6.7996]
[1720950348303,1.05e-05,147.09,147.07,6.7994]
[1720950349296,15.8645,147.07,146.88,6.3473]
[1720950349464,1.70065427,147.06,146.88,6.3473]
[1720950349674,46.70065427,147.06,146.88,6.3473]
[1720950350368,46.70065427,147.06,146.88,26.8273]
[1720950350689,46.70065427,147.06,146.9,15.0]
[1720950351874,46.70065427,147.06,146.9,35.48]
[1720950352078,1.7003452,147.06,146.9,60.05]
[1720950352483,1.7003452,147.06,146.91,20.0]
[1720950352871,1.7003452,147.06,146.91,40.48]
[1720950353071,1.7003452,147.06,146.92,45.0]
[1720950353267,1.7003452,147.06,146.93,20.0]
[1720950353467,46.7003452,147.06,146.94,45.0]
[1720950353873,46.7003452,147.06,146.95,20.0]
[1720950354074,46.7003452,147.06,146.96,45.0]
[1720950354475,28.09686884,147.05,146.84,2.76352537]
[1720950354679,28.09686884,147.05,146.81,24.57]
[1720950354906,45.0,147.04,146.84,24.57]
[1720950355196,1.70101174,147.03,146.84,24.57]
[1720950355580,1.70101174,147.03,146.84,45.05]
[1720950356510,21.70101174,147.03,146.81,45.05]
[1720950356797,45.0,147.02,146.81,45.05]
[1720950357100,21.70135952,147.01,146.81,45.05]
[1720950357280,45.0,147.0,146.81,45.05]
[1720950357484,17.06,146.98,146.73,2.7913535]
[1720950357701,17.06,146.98,146.71,1.0692105]
[1720950357702,72.3160881,146.97,146.71,1.0692105]
[1720950357879,15.8645,146.96,146.71,1.0692105]
[1720950358079,66.7027586,146.95,146.71,1.0692105]
[1720950358280,71.12112909,146.95,146.71,40.6392105]
[1720950358680,71.12112909,146.95,146.73,15.0]
[1720950358886,71.12112909,146.95,146.74,24.57]
[1720950359090,66.7027586,146.95,146.74,24.57]
[1720950359706,66.7027586,146.95,146.75,45.0]
[1720950360886,1.70206845,147.05,146.83,24.57]
[1720950361092,1.7011027,147.04,146.84,65.0]
[1720950361411,1.7011027,147.04,146.81,9.00434555]
[1720950361588,1.7011027,147.04,146.82,20.0]
[1720950361789,1.7011027,147.04,146.79,24.57]
[1720950362096,19.87241643,147.08,146.8,75.45442694]
[1720950362097,1.70172964,147.07,146.8,75.45442694]
[1720950362401,21.70172964,147.07,146.8,75.45442694]
[1720950362708,17.06,147.06,146.8,75.45442694]
[1720950362911,21.70169238,147.05,146.8,75.45442694]
[1720950363087,1.70164673,147.04,146.8,75.45442694]
[1720950364005,46.70164673,147.04,146.8,75.45442694]
[1720950364307,20.0,147.03,146.8,75.45442694]
[1720950364491,20.0,147.05,146.82,24.57]
[1720950364492,1.70125919,147.02,146.82,24.57]
[1720950364713,1.70127207,147.01,146.83,65.0]
[1720950365708,1.70131571,147.04,146.83,65.0]
[1720950366581,46.70131571,147.04,146.83,65.0]
[1720950366787,20.0,147.03,146.83,65.0]
[1720950366982,1.70131341,147.02,146.83,75.45442694]
[1720950367204,1.70109171,147.01,146.84,10.45442694]
[1720950367394,17.06,147.06,146.85,89.57]
[1720950367395,1.70105216,147.05,146.85,89.57]
[1720950367588,1.70074131,147.04,146.86,10.45442694]
[1720950367799,1.70074131,147.04,146.87,65.0]
[1720950368589,1.70080359,147.05,146.87,65.0]
[1720950368804,1.70081428,147.04,146.87,65.0]
[1720950369405,46.70081428,147.04,146.87,65.0]
[1720950369719,20.0,147.03,146.87,65.0]
[1720950369911,46.700905,147.02,146.87,65.0]
[1720950370090,1.70092709,147.01,146.87,65.0]
[1720950372304,1.70092709,147.01,146.82,279.618421]
[1720950372493,16.5855,147.0,146.83,9.00434555]
[1720950372694,66.70161225,146.99,146.83,9.00434555]
[1720950372913,1.70161972,146.98,146.83,9.00434555]
[1720950373596,1.70161972,146.98,146.77,265.485721]
[1720950374917,1.70191471,147.07,146.9,24.57]
[1720950375117,1.70191471,147.07,146.87,61.49649518]
[1720950375310,1.70191471,147.07,146.96,6.8044]
[1720950376020,1.70191471,147.07,146.95,6.8049]